[Event "WYCC U18 Open 2019"]
[Site "Mumbai"]
[Date "2019.10.03"]
[Round "2.12"]
[White "Zarubitski, Viachaslau"]
[Black "Manish, Anto Cristiano F"]
[Result "1-0"]
[ECO "E06"]
[WhiteElo "2435"]
[BlackElo "2320"]
[Annotator "NA"]
[PlyCount "156"]
[EventDate "2019.10.02"]
[EventType "swiss"]
[EventCountry "IND"]
[SourceTitle "playchess.com"]
[Source "ChessBase"]
[SourceQuality "1"]
[TimeControl "40/5400+30:1800+30"]

1. d4 {[%emt 0:00:00]} Nf6 {[%emt 0:00:00]} 2. c4 {[%emt 0:02:39]} e6 {[%emt 0:00:06]} 3. g3 {[%emt 0:00:20]} d5 {[%emt 0:00:41]} 4. Bg2 {[%emt 0:00:42]} Be7 {[%emt 0:01:02]} 5. Nf3 {[%emt 0:00:19]} O-O {[%emt 0:00:16]} 6. O-O {[%emt 0:00:30]} dxc4 {[%emt 0:00:44]} 7. Qc2 {[%emt 0:03:55]} a6 {[%emt 0:00:08]} 8. Qxc4 {[%emt 0:07:42]} b5 {[%emt 0:00:10]} 9. Qc2 {[%emt 0:00:09]} Bb7 {[%emt 0:00:26]} 10. Bd2 {[%emt 0:04:22]} Nc6 {[%emt 0:08:01]} 11. e3 {[%emt 0:16:31]} Nb4 {[%emt 0:03:14]} 12. Qd1 {[%emt 0:00:53]} Nbd5 {[%emt 0:10:41]} 13. Ba5 {[%emt 0:02:25]} Bb4 {[%emt 0:01:24]} 14. Bxb4 {[%emt 0:00:41]} Nxb4 {[%emt 0:00:12]} 15. Nbd2 {[%emt 0:09:52]} Rc8 {[%emt 0:03:32]} 16. Nb3 {[%emt 0:03:42]} Nd7 {[%emt 0:01:21]} 17. a3 {[%emt 0:06:24]} Nd5 {[%emt 0:00:15]} 18. Rc1 {[%emt 0:03:28]} Qe7 {[%emt 0:03:11]} 19. Na5 {[%emt 0:03:05]} Ba8 {[%emt 0:00:29]} 20. b4 {[%emt 0:00:10]} N5b6 {[%emt 0:02:46]} 21. Re1 {[%emt 0:04:30]} Rfd8 {[%emt 0:03:59]} 22. Qc2 {[%emt 0:01:12]} e5 {[%emt 0:09:07]} 23. Nxe5 {[%emt 0:06:30]} Bxg2 {[%emt 0:00:55]} 24. Kxg2 {[%emt 0:00:20]} Nxe5 {[%emt 0:00:19]} 25. dxe5 c5 {[%emt 0:00:23]} 26. bxc5 {[%emt 0:00:59]} Nc4 {[%emt 0:03:31]} 27. Nxc4 {[%emt 0:02:54]} Rxc5 {[%emt 0:02:48]} 28. Qe2 {[%emt 0:05:23]} Rdc8 {[%emt 0:04:37]} 29. Nd6 {[%emt 0:07:03]} Rxc1 {[%emt 0:00:16]} 30. Nxc8 {[%emt 0:00:01]} Rxc8 {[%emt 0:00:14]} 31. Qb2 {[%emt 0:00:18]} Qb7+ {[%emt 0:03:06]} 32. Kg1 {[%emt 0:00:42]} Qd5 {[%emt 0:02:12]} 33. Rc1 {[%emt 0:02:07]} Rxc1+ {[%emt 0:04:48]} 34. Qxc1 {[%emt 0:00:01]} g6 {[%emt 0:04:57]} 35. Qc8+ {[%emt 0:02:26]} Kg7 {[%emt 0:00:02]} 36. Qxa6 {[%emt 0:00:09]} Qd1+ {[%emt 0:02:12]} 37. Kg2 {[%emt 0:00:01]} Qd5+ {[%emt 0:00:17]} 38. Kh3 {[%emt 0:00:02]} Qxe5 {[%emt 0:00:21]} 39. Qc6 {[%emt 0:02:42]} Qb2 {[%emt 0:04:27]} 40. Kg2 {[%emt 0:00:17]} Qxa3 {[%emt 0:01:33]} 41. Qxb5 {[%emt 0:30:01]} Qa8+ {[%emt 0:31:23]} 42. Kg1 {[%emt 0:00:02]} Qa1+ {[%emt 0:00:26]} 43. Kg2 {[%emt 0:00:05]} Qa8+ {[%emt 0:00:18]} 44. Kg1 {[%emt 0:00:02]} Qa1+ {[%emt 0:00:37]} 45. Qf1 {[%emt 0:00:02]} Qc3 {[%emt 0:01:15]} 46. Qd1 {[%emt 0:01:16]} Qc6 {[%emt 0:02:36]} 47. Qd4+ {[%emt 0:01:47]} Kg8 {[%emt 0:00:39]} 48. Qd8+ {[%emt 0:00:07]} Kg7 {[%emt 0:00:08]} 49. Qd4+ {[%emt 0:00:09]} Kg8 {[%emt 0:00:12]} 50. e4 {[%emt 0:00:04]} h5 {[%emt 0:02:54]} 51. Qd8+ {[%emt 0:03:31]} Kg7 {[%emt 0:00:52]} 52. Qd4+ {[%emt 0:00:18]} Kg8 {[%emt 0:00:10]} 53. h4 {[%emt 0:00:04]} Qb5 {[%emt 0:03:17]} 54. Qd8+ {[%emt 0:00:30]} Kg7 {[%emt 0:00:18]} 55. Qd4+ {[%emt 0:00:05]} Kg8 {[%emt 0:00:14]} 56. Kg2 {[%emt 0:00:03]} Qe2 {[%emt 0:00:43]} 57. Qd8+ {[%emt 0:00:50]} Kg7 {[%emt 0:02:22]} 58. Qe8 {[%emt 0:00:25]} Qd3 {[%emt 0:00:34]} 59. Qe5+ {[%emt 0:00:44]} Kg8 {[%emt 0:00:10]} 60. Qb8+ {[%emt 0:00:24]} Kg7 {[%emt 0:00:54]} 61. Qf4 {[%emt 0:00:08]} Kg8 {[%emt 0:01:21]} 62. Qf3 {[%emt 0:00:00]} Qd2 {[%emt 0:00:00]} 63. Kg1 {[%emt 0:00:00]} Qe1+ {[%emt 0:00:00]} 64. Kh2 {[%emt 0:00:00]} Kg7 {[%emt 0:00:00]} 65. Kg2 {[%emt 0:00:00]} Kg8 {[%emt 0:00:00]} 66. Qd3 {[%emt 0:00:00]} Kg7 {[%emt 0:00:00]} 67. Qd4+ {[%emt 0:00:00]} Kf8 {[%emt 0:00:00]} 68. Kf3 {[%emt 0:00:00]} Ke7 {[%emt 0:00:00]} 69. Qc5+ {[%emt 0:00:00]} Ke6 {[%emt 0:00:00]} 70. Qd5+ {[%emt 0:00:00]} Ke7 {[%emt 0:00:00]} 71. Qe5+ {[%emt 0:00:00]} Kd7 {[%emt 0:00:00]} 72. Qb2 {[%emt 0:00:00]} Ke7 {[%emt 0:00:00]} 73. Kf4 {[%emt 0:00:00]} Ke6 {[%emt 0:00:00]} 74. Kg5 {[%emt 0:00:00]} Qa5+ {[%emt 0:00:00]} 75. Kh6 {[%emt 0:00:00]} Qc7 {[%emt 0:00:58]} 76. Kg7 {[%emt 0:00:00]} f5+ {[%emt 0:03:18]} 77. Kxg6 {[%emt 0:00:00]} fxe4 {[%emt 0:00:47]} 78. Qf6+ {[%emt 0:00:00]} Kd5 1-0

[Event "WYCC U18 Open 2019"]
[Site "Mumbai"]
[Date "2019.10.03"]
[Round "2.13"]
[White "Beukema, Jasper"]
[Black "Mitrabha, Guha"]
[Result "1/2-1/2"]
[ECO "A61"]
[WhiteElo "2265"]
[BlackElo "2434"]
[Annotator "NA"]
[PlyCount "74"]
[EventDate "2019.10.02"]
[EventType "swiss"]
[EventCountry "IND"]
[SourceTitle "playchess.com"]
[Source "ChessBase"]
[SourceQuality "1"]
[TimeControl "40/5400+30:1800+30"]

1. d4 Nf6 2. c4 e6 3. Nf3 c5 4. d5 exd5 5. cxd5 d6 6. Nc3 g6 7. Nd2 Bg7 8. Nc4 O-O 9. Bf4 Ne8 10. g3 b6 11. a4 Ba6 12. Nb5 Bxb5 13. axb5 Nd7 14. Bg2 Qe7 15. O-O Ne5 16. Bxe5 Bxe5 17. Qd3 Nc7 18. f4 Bg7 19. e4 Nxb5 20. Nxb6 axb6 21. Qxb5 Qf6 22. Rxa8 Rxa8 23. Qc6 Qd4+ 24. Kh1 Ra2 25. e5 Qxb2 26. Rg1 Ra1 27. Qe8+ Bf8 28. e6 Ra7 29. Qb8 Ra1 30. e7 Rxg1+ 31. Kxg1 Qd4+ 32. Kf1 Qd1+ 33. Kf2 Qd2+ 34. Kf1 Qd3+ 35. Kf2 Qd2+ 36. Kf1 Qd3+ 37. Kf2 Qd2+ 1/2-1/2

[Event "WYCC U18 Open 2019"]
[Site "Mumbai"]
[Date "2019.10.03"]
[Round "2.14"]
[White "Chuang, James"]
[Black "Mendonca, Leon Luke"]
[Result "0-1"]
[ECO "A05"]
[WhiteElo "1405"]
[BlackElo "2388"]
[Annotator "NA"]
[PlyCount "70"]
[EventDate "2019.10.02"]
[EventType "swiss"]
[EventCountry "IND"]
[SourceTitle "playchess.com"]
[Source "ChessBase"]
[SourceQuality "1"]
[TimeControl "40/5400+30:1800+30"]

1. Nf3 {[%emt 0:00:00]} Nf6 {[%emt 0:00:00]} 2. c4 {[%emt 0:00:00]} b6 {[%emt 0:00:58]} 3. g3 {[%emt 0:00:45]} Bb7 {[%emt 0:01:01]} 4. Bg2 {[%emt 0:00:21]} e6 {[%emt 0:00:59]} 5. O-O {[%emt 0:00:48]} Be7 {[%emt 0:00:13]} 6. d3 {[%emt 0:01:43]} d5 {[%emt 0:02:24]} 7. cxd5 {[%emt 0:03:25]} exd5 {[%emt 0:00:17]} 8. Nbd2 {[%emt 0:03:17]} O-O {[%emt 0:01:02]} 9. b3 {[%emt 0:00:51]} c5 {[%emt 0:12:14]} 10. d4 {[%emt 0:07:11]} Re8 {[%emt 0:01:56]} 11. Bb2 {[%emt 0:03:19]} Bf8 {[%emt 0:02:50]} 12. Rc1 {[%emt 0:02:44]} Nbd7 {[%emt 0:01:05]} 13. e3 {[%emt 0:03:27]} Rc8 {[%emt 0:08:49]} 14. Re1 {[%emt 0:03:39]} h6 {[%emt 0:01:03]} 15. Nh4 {[%emt 0:08:32]} Rc7 {[%emt 0:12:33]} 16. Ndf3 {[%emt 0:09:09]} c4 {[%emt 0:13:12]} 17. Ne5 {[%emt 0:11:08]} b5 {[%emt 0:05:10]} 18. Re2 {[%emt 0:08:03]} Nb6 {[%emt 0:05:06]} 19. Rec2 {[%emt 0:02:15]} a6 {[%emt 0:10:00]} 20. f4 {[%emt 0:07:20]} b4 {[%emt 0:13:09]} 21. bxc4 {[%emt 0:08:11]} dxc4 {[%emt 0:00:06]} 22. Bxb7 {[%emt 0:00:43]} Rxb7 {[%emt 0:00:00]} 23. Nxc4 {[%emt 0:01:20]} Nxc4 {[%emt 0:00:34]} 24. Rxc4 {[%emt 0:00:09]} Rbe7 {[%emt 0:04:26]} 25. Nf5 {[%emt 0:03:56]} Re4 {[%emt 0:02:14]} 26. d5 {[%emt 0:07:40]} Rxc4 {[%emt 0:00:40]} 27. Rxc4 {[%emt 0:00:06]} Qxd5 {[%emt 0:00:50]} 28. Qxd5 {[%emt 0:00:26]} Nxd5 {[%emt 0:00:00]} 29. Bd4 {[%emt 0:00:46]} g6 {[%emt 0:01:01]} 30. e4 {[%emt 0:00:57]} Rxe4 {[%emt 0:00:34]} 31. Nh4 {[%emt 0:00:45]} Ne3 {[%emt 0:00:29]} 32. Bxe3 {[%emt 0:01:16]} Rxc4 {[%emt 0:00:02]} 33. Nf3 {[%emt 0:00:52]} Rc2 {[%emt 0:00:14]} 34. Ne5 {[%emt 0:00:29]} Rxa2 {[%emt 0:00:09]} 35. Nc4 {[%emt 0:00:21]} b3 {[%emt 0:00:07]} 0-1

[Event "WYCC U18 Open 2019"]
[Site "Mumbai"]
[Date "2019.10.03"]
[Round "2.15"]
[White "Elashvili, Giorgi"]
[Black "Davtyan, Artur"]
[Result "0-1"]
[ECO "C81"]
[WhiteElo "1937"]
[BlackElo "2418"]
[Annotator "NA"]
[PlyCount "63"]
[EventDate "2019.10.02"]
[EventType "swiss"]
[EventCountry "IND"]
[SourceTitle "playchess.com"]
[Source "ChessBase"]
[SourceQuality "1"]
[TimeControl "40/5400+30:1800+30"]

1. e4 {[%emt 0:00:00]} e5 {[%emt 0:00:00]} 2. Nf3 {[%emt 0:00:00]} Nc6 {[%emt 0:00:55]} 3. Bb5 {[%emt 0:00:16]} a6 {[%emt 0:00:10]} 4. Ba4 {[%emt 0:00:08]} Nf6 {[%emt 0:00:06]} 5. O-O {[%emt 0:00:31]} Nxe4 {[%emt 0:01:40]} 6. d4 {[%emt 0:05:53]} b5 {[%emt 0:03:15]} 7. Bb3 {[%emt 0:00:12]} d5 {[%emt 0:00:06]} 8. dxe5 {[%emt 0:00:12]} Be6 {[%emt 0:00:04]} 9. Qe2 {[%emt 0:01:20]} Be7 {[%emt 0:05:16]} 10. Rd1 {[%emt 0:01:02]} Na5 {[%emt 0:17:27]} 11. Nbd2 {[%emt 0:24:06]} Nxd2 {[%emt 0:04:17]} 12. Bxd2 {[%emt 0:01:00]} Nxb3 {[%emt 0:12:49]} 13. cxb3 {[%emt 0:06:15]} c5 {[%emt 0:01:21]} 14. b4 {[%emt 0:00:47]} cxb4 {[%emt 0:09:10]} 15. Nd4 {[%emt 0:01:26]} Qd7 {[%emt 0:00:01]} 16. Rac1 {[%emt 0:04:11]} O-O {[%emt 0:00:45]} 17. Nc6 {[%emt 0:28:49]} Rfc8 {[%emt 0:01:10]} 18. Nxe7+ {[%emt 0:02:37]} Qxe7 {[%emt 0:00:04]} 19. b3 {[%emt 0:03:30]} h6 {[%emt 0:00:21]} 20. Be3 {[%emt 0:04:45]} Qd7 {[%emt 0:10:34]} 21. Rc5 {[%emt 0:04:27]} Rxc5 {[%emt 0:02:35]} 22. Bxc5 {[%emt 0:00:03]} a5 {[%emt 0:00:06]} 23. Qe3 {[%emt 0:01:48]} Qc7 {[%emt 0:02:28]} 24. Rc1 {[%emt 0:03:22]} Rc8 {[%emt 0:00:34]} 25. Qd4 {[%emt 0:00:52]} Qd7 {[%emt 0:00:01]} 26. f3 {[%emt 0:03:36]} Rc6 {[%emt 0:00:25]} 27. Kf2 {[%emt 0:01:04]} Bf5 {[%emt 0:01:19]} 28. Rd1 {[%emt 0:00:29]} Qc8 {[%emt 0:00:17]} 29. Rc1 {[%emt 0:01:10]} Bb1 {[%emt 0:00:07]} 30. Qxd5 {[%emt 0:00:38]} Bxa2 {[%emt 0:00:02]} 31. Kg3 {[%emt 0:00:30]} a4 {[%emt 0:00:22]} 32. e6 {[%emt 0:00:30]} 0-1

[Event "WYCC U18 Open 2019"]
[Site "Mumbai"]
[Date "2019.10.03"]
[Round "2.16"]
[White "Aditya, Mittal"]
[Black "Stijve, Theo"]
[Result "1-0"]
[ECO "D85"]
[WhiteElo "2430"]
[BlackElo "2293"]
[Annotator "NA"]
[PlyCount "81"]
[EventDate "2019.10.02"]
[EventType "swiss"]
[EventCountry "IND"]
[SourceTitle "playchess.com"]
[Source "ChessBase"]
[SourceQuality "1"]
[TimeControl "40/5400+30:1800+30"]

1. d4 {[%emt 0:00:00]} Nf6 {[%emt 0:00:12]} 2. c4 {[%emt 0:00:04]} g6 {[%emt 0:00:06]} 3. Nc3 {[%emt 0:00:10]} d5 {[%emt 0:00:08]} 4. cxd5 {[%emt 0:00:04]} Nxd5 {[%emt 0:00:09]} 5. e4 {[%emt 0:00:02]} Nxc3 {[%emt 0:00:12]} 6. bxc3 {[%emt 0:00:03]} Bg7 {[%emt 0:00:11]} 7. Nf3 {[%emt 0:00:04]} c5 {[%emt 0:00:10]} 8. Be3 {[%emt 0:00:05]} Qa5 {[%emt 0:00:08]} 9. Bd2 {[%emt 0:00:07]} Qa3 {[%emt 0:10:43]} 10. Bb5+ {[%emt 0:14:48]} Nc6 {[%emt 0:08:02]} 11. Qb3 {[%emt 0:15:56]} Qxb3 {[%emt 0:05:16]} 12. axb3 {[%emt 0:00:04]} cxd4 {[%emt 0:01:17]} 13. Nxd4 {[%emt 0:01:05]} Bd7 {[%emt 0:06:15]} 14. Nxc6 {[%emt 0:00:08]} Bxc6 {[%emt 0:00:45]} 15. Bxc6+ {[%emt 0:00:10]} bxc6 {[%emt 0:00:06]} 16. Ra5 {[%emt 0:01:13]} Kd7 {[%emt 0:06:56]} 17. Ke2 {[%emt 0:02:16]} Rhb8 {[%emt 0:04:04]} 18. b4 {[%emt 0:00:09]} Rb5 {[%emt 0:03:30]} 19. Ra6 {[%emt 0:02:57]} Rb6 {[%emt 0:11:27]} 20. Ra4 {[%emt 0:00:25]} Kc7 {[%emt 0:09:37]} 21. Rha1 {[%emt 0:03:33]} Kb7 {[%emt 0:04:09]} 22. R1a3 {[%emt 0:03:07]} a6 {[%emt 0:02:34]} 23. Be3 {[%emt 0:02:24]} Rb5 {[%emt 0:00:26]} 24. Bc5 {[%emt 0:01:55]} e6 {[%emt 0:08:15]} 25. c4 {[%emt 0:00:41]} Rxc5 {[%emt 0:00:07]} 26. bxc5 {[%emt 0:00:04]} Bd4 {[%emt 0:00:12]} 27. Rb3+ {[%emt 0:04:15]} Kc7 {[%emt 0:00:49]} 28. Ra5 {[%emt 0:00:10]} Rf8 {[%emt 0:09:05]} 29. e5 {[%emt 0:01:41]} f5 {[%emt 0:08:03]} 30. f4 {[%emt 0:02:58]} g5 {[%emt 0:01:07]} 31. Rh3 {[%emt 0:04:19]} Rf7 {[%emt 0:00:55]} 32. Rd3 {[%emt 0:00:29]} Bxc5 {[%emt 0:00:22]} 33. Rxa6 {[%emt 0:05:09]} Kb7 {[%emt 0:00:40]} 34. Ra5 {[%emt 0:00:44]} Bb6 {[%emt 0:00:28]} 35. Rb3 {[%emt 0:00:37]} Kc7 {[%emt 0:00:01]} 36. Ra6 {[%emt 0:00:13]} Bd4 {[%emt 0:00:59]} 37. fxg5 {[%emt 0:00:09]} Rg7 {[%emt 0:00:25]} 38. h4 {[%emt 0:01:57]} h6 {[%emt 0:00:32]} 39. Ra8 {[%emt 0:01:46]} hxg5 {[%emt 0:00:30]} 40. c5 {[%emt 0:00:59]} Bxc5 {[%emt 0:00:34]} 41. Rab8 {[%emt 0:30:23]} 1-0